bitfinex/quotes_SOLUSD_20260213
["timestamp","ask_amount","ask_price","bid_price","bid_amount"]
[1770961857864,0.57247316,78.719,78.701,0.59163968]
[1770961858063,0.57247316,78.718,78.701,0.59163968]
[1770961858668,0.57247316,78.724,78.703,0.59163968]
[1770961859165,4.25854212,78.72,78.703,0.59163968]
[1770961859867,4.25854212,78.74,78.705,0.59163968]
[1770961860047,4.25854212,78.74,78.711,0.59163968]
[1770961860365,13.27156148,78.746,78.711,0.59163968]
[1770961860668,0.57589873,78.756,78.721,0.58006055]
[1770961860970,0.57589873,78.756,78.72,4.25854212]
[1770961860971,12.69551086,78.768,78.731,0.58006055]
[1770961861344,0.57589873,78.775,78.741,0.58006055]
[1770961861756,12.69432991,78.776,78.741,0.58006055]
[1770961861956,4.83444085,78.78,78.743,0.58006055]
[1770961862164,0.57589873,78.779,78.743,0.58006055]
[1770961863570,0.57589873,78.779,78.751,0.58006055]
[1770961864960,4.25854212,78.77,78.751,0.58006055]
[1770961865160,0.57589873,78.769,78.745,0.58006055]
[1770961865873,0.57589873,78.769,78.747,0.58006055]
[1770961866454,0.57589873,78.774,78.747,0.58006055]
[1770961866966,0.57589873,78.769,78.747,0.58006055]
[1770961868374,0.57589873,78.769,78.732,53.02]
[1770961868375,12.69083848,78.797,78.761,0.58006055]
[1770961868676,0.57589873,78.798,78.771,0.58006055]
[1770961869464,4.25854212,78.79,78.771,0.58006055]
[1770961869671,0.57589873,78.793,78.771,0.58006055]
[1770961870256,13.2674809,78.793,78.771,0.58006055]
[1770961870453,0.57589873,78.789,78.771,0.58006055]
[1770961870858,0.57589873,78.796,78.77,4.25854212]
[1770961871058,13.2660664,78.802,78.771,0.58006055]
[1770961871258,0.57589873,78.799,78.771,0.58006055]
[1770961871878,4.25854212,78.81,78.781,0.58006055]
[1770961872075,0.57589873,78.813,78.781,0.58006055]
[1770961872285,0.57589873,78.813,78.762,97.37757485]
[1770961872286,0.57589873,78.813,78.791,0.58006055]
[1770961874679,0.57589873,78.813,78.78,4.25854212]
[1770961874680,0.1,78.82,78.801,0.58006055]
[1770961874871,4.35854212,78.82,78.801,0.58006055]
[1770961875071,0.67589873,78.82,78.793,0.58006055]
[1770961875269,0.57589873,78.809,78.786,0.58006055]
[1770961875473,0.57589873,78.809,78.785,12.69265208]
[1770961875983,0.57589873,78.789,78.765,0.58006055]
[1770961877487,0.57589873,78.789,78.765,13.27599134]
[1770961878166,0.57589873,78.789,78.766,0.58006055]
[1770961879182,0.57589873,78.795,78.768,0.58006055]
[1770961879482,31.72116074,78.812,78.767,12.69567204]
[1770961879483,12.68958403,78.805,78.771,0.58006055]
[1770961880377,4.61729252,78.827,78.767,44.43485215]
[1770961880378,0.57589873,78.825,78.791,0.58006055]
[1770961880889,0.57589873,78.809,78.778,0.58006055]
[1770961881391,0.57589873,78.809,78.781,0.58006055]
[1770961883384,0.57589873,78.809,78.783,0.58006055]
[1770961886196,0.57589873,78.807,78.783,0.58006055]
[1770961886368,0.57589873,78.799,78.777,53.40006055]
[1770961886569,0.57589873,78.799,78.776,12.69410801]
[1770961887284,0.57589873,78.799,78.777,0.58006055]
[1770961892194,0.58154832,78.797,78.77,0.59457375]
[1770961892396,0.58154832,78.789,78.762,0.59457375]
[1770961894379,0.58327645,78.787,78.762,0.59457375]
[1770961894692,12.69228816,78.788,78.762,0.59457375]
[1770961894693,0.58327645,78.779,78.762,0.59457375]
[1770961904205,0.58327645,78.769,78.755,12.69756396]
[1770961904499,0.58327645,78.774,78.755,13.25455137]
[1770961904701,0.58327645,78.774,78.756,0.55698741]
[1770961905005,0.58327645,78.779,78.756,0.55698741]
[1770961905904,0.58327645,78.779,78.745,44.44726648]
[1770961905905,0.58327645,78.779,78.758,0.55698741]
[1770961906105,4.25854212,78.78,78.758,0.55698741]
[1770961906317,0.58327645,78.784,78.758,0.55698741]
[1770961908906,0.58327645,78.784,78.75,4.25854212]
[1770961908907,13.2755239,78.789,78.76,0.55698741]
[1770961909094,0.58327645,78.788,78.76,0.55698741]
[1770961911792,0.58327645,78.779,78.751,0.55698741]
[1770961912102,0.58327645,78.769,78.751,0.55698741]
[1770961912889,4.25854212,78.78,78.751,0.55698741]
[1770961913215,0.58327645,78.779,78.751,0.55698741]
[1770961914397,0.58327645,78.779,78.753,0.55698741]
[1770961914597,4.25854212,78.76,78.739,0.55698741]
[1770961914803,4.25854212,78.76,78.69,4.45854212]
[1770961914804,0.58327645,78.749,78.728,12.70183987]
[1770961915013,0.58327645,78.749,78.728,13.25882728]
[1770961915895,0.58327645,78.749,78.729,0.55698741]
[1770961916303,4.2575035,78.75,78.729,0.55698741]
[1770961916510,0.58327645,78.759,78.731,0.55698741]
[1770961916895,0.58327645,78.758,78.731,0.55698741]
[1770961917096,4.2575035,78.75,78.731,0.55698741]
[1770961917397,4.84077995,78.76,78.731,0.55698741]
[1770961917596,17.53767506,78.76,78.731,0.55698741]
[1770961918108,4.84077995,78.76,78.731,0.55698741]
[1770961919309,4.84077995,78.76,78.732,12.70131585]
[1770961919517,4.2575035,78.76,78.733,0.55698741]
[1770961919913,4.84077995,78.76,78.733,0.55698741]
[1770961920102,0.58327645,78.759,78.733,0.55698741]
[1770961921900,0.58997744,78.758,78.735,0.54679417]
[1770961922302,0.58997744,78.749,78.728,12.70192124]
[1770961922919,4.2575035,78.75,78.69,55.28932198]
[1770961922920,0.58997744,78.739,78.717,0.54679417]
[1770961923119,4.2575035,78.75,78.692,0.54679417]
[1770961923120,0.58997744,78.729,78.692,0.54679417]
[1770961923301,0.58997744,78.719,78.692,0.54679417]
[1770961924014,12.70239009,78.726,78.694,0.54679417]
[1770961924214,4.2575035,78.72,78.694,0.54679417]
[1770961926524,0.58997744,78.738,78.701,0.54679417]
[1770961926820,4.84748094,78.73,78.701,0.54679417]
[1770961928415,0.58997744,78.719,78.696,0.54679417]
[1770961930531,0.58997744,78.719,78.698,0.54679417]
[1770961931426,0.58997744,78.725,78.698,0.54679417]
[1770961931606,4.2575035,78.73,78.701,0.54679417]
[1770961932511,12.70179984,78.729,78.701,0.54679417]
[1770961933032,13.29177728,78.729,78.701,0.54679417]
[1770961933227,12.70179984,78.729,78.701,0.54679417]
[1770961933532,0.58997744,78.728,78.701,0.54679417]
[1770961934227,4.2575035,78.74,78.703,0.54679417]
[1770961934739,0.58997744,78.739,78.703,0.54679417]
[1770961935229,4.2575035,78.73,78.703,0.54679417]
[1770961935617,4.2575035,78.73,78.705,0.54679417]
[1770961937627,4.2575035,78.73,78.707,0.54679417]
[1770961937811,4.84748094,78.73,78.707,0.54679417]
[1770961939322,0.58997744,78.729,78.707,0.54679417]
[1770961939526,0.58997744,78.729,78.706,12.70551165]
[1770961939527,0.58997744,78.719,78.694,0.54679417]
[1770961940716,0.58997744,78.719,78.696,0.54679417]
[1770961942637,0.58997744,78.719,78.698,0.54679417]
[1770961945240,0.58997744,78.719,78.699,13.25343593]
[1770961945945,4.2575035,78.71,78.699,0.54679417]
[1770961946134,0.58997744,78.709,78.695,12.70715934]
[1770961946445,0.58997744,78.709,78.691,0.54679417]
[1770961947242,0.58997744,78.709,78.692,12.70777207]
[1770961947440,4.2575035,78.71,78.693,0.54679417]
[1770961947629,0.58997744,78.716,78.693,0.54679417]
[1770961949236,0.58997744,78.716,78.692,12.70777207]
[1770961949237,0.58997744,78.709,78.692,12.70777207]
[1770961949749,0.58997744,78.709,78.69,0.74679417]
[1770961950143,0.58997744,78.709,78.691,0.54679417]
[1770961952945,0.58997744,78.709,78.69,0.2]
[1770961955046,0.5746117,78.707,78.69,0.2]
[1770961955729,0.5746117,78.707,78.691,12.70793356]
[1770961957055,4.2575035,78.71,78.692,0.56612181]
[1770961957449,0.5746117,78.709,78.692,0.56612181]
[1770961960738,4.2575035,78.71,78.692,0.56612181]
[1770961960739,3.83199758,78.71,78.692,0.56612181]
[1770961960961,4.2575035,78.71,78.692,0.56612181]
[1770961962766,4.28678562,78.71,78.692,0.56612181]
[1770961962939,0.02928212,78.709,78.692,0.56612181]
[1770961963559,4.2575035,78.71,78.694,0.56612181]
[1770961963868,16.96088858,78.72,78.694,0.56612181]
[1770961964449,16.98844387,78.72,78.694,0.56612181]
[1770961965043,16.96088858,78.72,78.694,0.56612181]
[1770961965352,0.02755529,78.719,78.694,0.56612181]
[1770961967375,4.2575035,78.7,78.68,0.2]
[1770961967549,4.2575035,78.7,78.681,0.57749836]
[1770961968647,16.96088858,78.72,78.682,0.57749836]
[1770961969345,16.96088858,78.72,78.684,0.57749836]
[1770961969565,12.70338508,78.72,78.684,0.57749836]
[1770961969755,4.2575035,78.7,78.684,0.57749836]
[1770961973649,4.2575035,78.72,78.686,0.57749836]
[1770961974555,4.2575035,78.72,78.691,0.57749836]
[1770961974874,4.2604902,78.72,78.691,0.57749836]
[1770961976471,12.70196391,78.728,78.693,0.57749836]
[1770961977250,4.2604902,78.72,78.693,0.57749836]
[1770961977748,12.70196391,78.728,78.693,0.57749836]
[1770961978274,4.2604902,78.72,78.693,0.57749836]
[1770961978666,4.2604902,78.72,78.695,0.57749836]
[1770961981763,4.2604902,78.73,78.701,0.57749836]
[1770961983681,4.2604902,78.73,78.703,0.57749836]
[1770961983883,4.2604902,78.72,78.699,0.57749836]
[1770961984478,4.2604902,78.72,78.696,12.70700386]
[1770961985185,4.2604902,78.72,78.697,0.57749836]
[1770961986683,4.2604902,78.72,78.698,13.28430158]
[1770961987187,39.94,78.736,78.68,4.4604902]
[1770961987188,4.2604902,78.71,78.692,0.57749836]
[1770961987365,4.2604902,78.71,78.682,0.57749836]
[1770961990186,4.2604902,78.71,78.683,12.70922562]
[1770961990483,4.2604902,78.71,78.684,0.57749836]
[1770961992385,4.2604902,78.71,78.686,0.57749836]
[1770961993388,4.2604902,78.71,78.687,12.70857956]
[1770961993691,4.2604902,78.71,78.687,13.28607792]
[1770961994069,4.2604902,78.72,78.681,0.57749836]
[1770961994070,4.2604902,78.7,78.681,0.57749836]
[1770961994779,4.2604902,78.7,78.68,0.2]
[1770961995991,4.2604902,78.69,78.67,0.2]
[1770961996194,4.2604902,78.68,78.66,0.2]
[1770961996689,4.2604902,78.68,78.661,0.57749836]
[1770961999109,4.2604902,78.68,78.663,0.57749836]
[1770961999397,40.0,78.699,78.663,0.57749836]
[1770962000692,4.2604902,78.69,78.665,0.57749836]
[1770962001598,4.2604902,78.69,78.667,0.57749836]
[1770962003178,4.2604902,78.68,78.661,13.29025179]
[1770962004696,4.2604902,78.68,78.662,0.57749836]
[1770962006692,4.2604902,78.68,78.66,0.2]
[1770962006892,4.2604902,78.67,78.66,0.2]
[1770962011395,4.2604902,78.67,78.653,0.57749836]
[1770962015306,4.2604902,78.66,78.65,0.2]
[1770962016199,4.2604902,78.67,78.65,0.2]
[1770962016701,4.2604902,78.67,78.651,12.71439651]
[1770962016896,4.2604902,78.67,78.652,0.57749836]
[1770962017294,4.2604902,78.68,78.652,0.57749836]
[1770962017604,4.2604902,78.67,78.652,0.57749836]
[1770962019306,12.7090641,78.684,78.652,0.57749836]
[1770962019499,4.2604902,78.67,78.652,0.57749836]
[1770962022289,4.2604902,78.66,78.65,0.2]
[1770962022688,4.2604902,78.66,78.641,0.57749836]
[1770962022889,4.2604902,78.65,78.64,0.2]
[1770962023509,4.2604902,78.66,78.641,0.57749836]
[1770962025213,31.77392918,78.681,78.643,0.57749836]
[1770962025513,4.2604902,78.66,78.643,0.57749836]
[1770962029016,4.2604902,78.67,78.645,0.57749836]
[1770962029915,12.71148737,78.669,78.645,0.57749836]
[1770962030297,4.2604902,78.67,78.647,0.57749836]
[1770962031413,4.2604902,78.67,78.648,12.71488149]
[1770962031611,4.2604902,78.67,78.649,0.57749836]
[1770962032415,4.2604902,78.66,78.649,0.57749836]
[1770962034601,4.2604902,78.66,78.641,0.57749836]
[1770962035817,12.71148737,78.669,78.643,0.57749836]
[1770962037016,4.26639304,78.67,78.643,0.57749836]
[1770962039025,4.26639304,78.66,78.643,0.57749836]
[1770962040315,4.26639304,78.66,78.641,12.71597683]
[1770962040316,4.26639304,78.67,78.645,0.57749836]
[1770962040824,4.26639304,78.66,78.645,0.57749836]
[1770962042333,12.71158364,78.669,78.645,0.57749836]
[1770962043229,4.26639304,78.66,78.645,0.57749836]
[1770962043813,4.26639304,78.67,78.645,0.57749836]
[1770962044132,40.26,78.675,78.647,0.57749836]
[1770962044334,4.26639304,78.67,78.647,0.57749836]
[1770962045131,4.26639304,78.66,78.647,0.57749836]
[1770962045349,4.26639304,78.66,78.641,0.57749836]
[1770962045633,4.26639304,78.67,78.642,0.57749836]
[1770962045823,12.71148737,78.669,78.642,0.57749836]
[1770962048216,12.71148737,78.669,78.644,0.57749836]
[1770962048832,4.26639304,78.68,78.65,4.26639304]
[1770962049036,4.26639304,78.69,78.651,0.57749836]
[1770962049748,4.26639304,78.69,78.661,0.57749836]
[1770962049937,12.70825655,78.689,78.663,0.57749836]
[1770962051134,4.26639304,78.67,78.655,0.57749836]
[1770962051344,4.26639304,78.67,78.642,0.57749836]
[1770962051514,4.26639304,78.66,78.642,0.57749836]
[1770962055841,4.26639304,78.66,78.644,0.57749836]
[1770962056046,4.26639304,78.67,78.644,0.57749836]
[1770962056848,4.26639304,78.66,78.644,0.57749836]
[1770962058554,12.71186412,78.667,78.644,0.57749836]
[1770962058845,4.26639304,78.66,78.644,0.57749836]
[1770962060727,4.26639304,78.67,78.644,0.57749836]
[1770962061040,4.26639304,78.66,78.644,0.57749836]
[1770962064551,4.26639304,78.67,78.645,0.57749836]
[1770962065663,12.71148737,78.669,78.645,0.57749836]
[1770962069959,4.26639304,78.66,78.645,0.57749836]
[1770962070459,4.26639304,78.67,78.645,0.57749836]
[1770962073078,12.71148737,78.669,78.645,0.57749836]
[1770962073378,4.26639304,78.65,78.641,0.57749836]
[1770962075168,12.71340429,78.658,78.641,0.57749836]
[1770962076181,40.56,78.669,78.641,0.57749836]
[1770962076384,12.71197612,78.666,78.641,0.57749836]
[1770962078384,12.71197612,78.666,78.643,0.57749836]
[1770962079671,4.26639304,78.66,78.643,0.57749836]
[1770962080173,12.71197612,78.666,78.643,0.57749836]
[1770962083580,40.7,78.665,78.643,0.57749836]
[1770962084282,4.26639304,78.66,78.643,0.57749836]
[1770962087683,4.26639304,78.66,78.64,12.91614153]
[1770962087993,4.26639304,78.65,78.64,0.2]
[1770962091191,4.61729252,78.684,78.641,0.57749836]
[1770962091192,4.26639304,78.66,78.641,0.57749836]
[1770962091397,40.8,78.666,78.641,0.57749836]
[1770962092874,12.71190547,78.667,78.641,0.57749836]
[1770962093074,40.82,78.666,78.641,0.57749836]
[1770962093791,4.26639304,78.66,78.641,0.57749836]
[1770962095788,4.26639304,78.65,78.631,0.57749836]
[1770962096090,4.26639304,78.65,78.631,12.71763045]
[1770962096292,4.26639304,78.65,78.632,0.57749836]
[1770962096894,4.26799327,78.65,78.632,0.57749836]
[1770962099391,4.26799327,78.64,78.632,0.57749836]
[1770962099693,4.26799327,78.65,78.632,0.57749836]
[1770962100101,4.26799327,78.64,78.63,0.2]
[1770962100282,4.26799327,78.64,78.62,0.2]
[1770962100485,4.26799327,78.63,78.62,0.2]
[1770962100688,4.26799327,78.62,78.612,0.57749836]
[1770962101089,4.26799327,78.63,78.612,0.57749836]
[1770962101699,0.47082627,78.657,78.614,0.50419426]
[1770962101926,0.47082627,78.657,78.613,12.7205424]
[1770962101927,0.47082627,78.669,78.631,0.50419426]
[1770962102097,16.97931906,78.67,78.641,0.50419426]
[1770962103001,17.44959027,78.67,78.641,0.50419426]
[1770962103918,4.26799327,78.67,78.643,0.50419426]
[1770962107508,4.26799327,78.67,78.645,0.50419426]
[1770962107710,0.46759011,78.687,78.651,0.50419426]
[1770962107906,4.26799327,78.68,78.651,0.50419426]
[1770962108106,0.46759011,78.679,78.651,0.50419426]
[1770962108306,4.73558338,78.67,78.651,0.50419426]
[1770962108516,0.46759011,78.669,78.651,0.50419426]
[1770962109221,4.26799327,78.67,78.651,0.50419426]
[1770962114133,4.26799327,78.69,78.651,0.50419426]
[1770962114310,0.46457067,78.689,78.652,0.50419426]
[1770962114506,4.26799327,78.69,78.639,53.1]
[1770962114507,4.26799327,78.66,78.64,0.50419426]
[1770962114725,0.46408747,78.659,78.635,0.50419426]
[1770962114938,0.46408747,78.649,78.63,0.50419426]
[1770962115123,4.26799327,78.65,78.63,0.50419426]
[1770962117517,4.73113092,78.65,78.63,0.50419426]
[1770962117711,13.17739073,78.649,78.63,0.50419426]
[1770962117932,0.4626709,78.649,78.63,0.50419426]
[1770962123435,0.46041637,78.639,78.613,0.50419426]
[1770962124047,4.26799327,78.64,78.613,0.50419426]
[1770962125143,4.26799327,78.64,78.612,44.52246475]
[1770962125144,4.26799327,78.65,78.621,0.50419426]
[1770962125323,4.72754367,78.65,78.621,0.50419426]
[1770962125520,4.72754367,78.65,78.623,0.50419426]
[1770962125737,4.26799327,78.65,78.623,0.50419426]
[1770962126136,4.72711813,78.65,78.623,0.50419426]
[1770962126444,0.45912486,78.649,78.623,0.50419426]
[1770962127633,0.45912486,78.649,78.625,0.50419426]
[1770962131242,0.45912486,78.649,78.627,0.49456054]
[1770962134045,0.45912486,78.649,78.629,0.50078118]
[1770962141963,0.45224894,78.686,78.632,0.50078118]
[1770962142136,12.70874107,78.686,78.651,0.50078118]
[1770962142450,0.45224894,78.659,78.631,0.50078118]
[1770962142779,0.45190726,78.649,78.624,0.50078118]
[1770962147162,0.45190726,78.649,78.626,0.50078118]
[1770962148771,4.26799327,78.65,78.628,0.50078118]
[1770962150163,12.71298952,78.66,78.631,0.50078118]
[1770962150949,16.98098279,78.66,78.631,0.50078118]
[1770962151460,17.43029419,78.66,78.631,0.50078118]
[1770962151963,17.43029419,78.66,78.633,0.50078118]
[1770962152160,41.08,78.663,78.633,0.50078118]
[1770962152362,0.44900347,78.665,78.633,0.50078118]
[1770962152668,12.7102876,78.677,78.641,0.50078118]
[1770962153059,4.26799327,78.67,78.643,0.50078118]
[1770962156468,0.44751603,78.676,78.645,0.50078118]
[1770962157270,4.2652575,78.68,78.651,0.50078118]
[1770962157563,0.44722872,78.679,78.651,0.50078118]
[1770962158364,0.44722872,78.679,78.653,0.50078118]
[1770962158567,0.4469447,78.669,78.646,0.50078118]
[1770962159659,0.4469447,78.669,78.648,12.71488149]
[1770962159864,0.4469447,78.669,78.649,0.50078118]
[1770962160961,4.2652575,78.67,78.649,0.50078118]
[1770962161972,0.44584089,78.669,78.649,0.50078118]
[1770962164680,0.44584089,78.669,78.651,0.46184229]
[1770962167985,4.2652575,78.67,78.651,0.46184229]
[1770962168483,0.44427793,78.673,78.651,0.46184229]
[1770962168774,0.44402781,78.679,78.653,0.46184229]
[1770962169576,4.2652575,78.68,78.653,0.46184229]
[1770962169983,4.2652575,78.68,78.655,0.46184229]
[1770962172391,4.2652575,78.68,78.657,0.46184229]
[1770962172392,4.70855205,78.68,78.657,0.46184229]
[1770962173287,0.44305572,78.685,78.659,0.46184229]
[1770962173983,4.2652575,78.68,78.659,0.46184229]
[1770962176685,0.44212753,78.679,78.659,0.46184229]
[1770962177391,0.44212753,78.679,78.661,0.46184229]
[1770962177583,4.2652575,78.68,78.661,0.46184229]
[1770962177782,0.44190211,78.683,78.661,0.46184229]
[1770962181688,0.44190211,78.683,78.662,12.71261854]
[1770962181994,0.44190211,78.683,78.663,0.46184229]
[1770962182391,4.2652575,78.69,78.665,0.46184229]
[1770962182692,0.44081325,78.699,78.665,0.46184229]
[1770962183476,0.44060292,78.696,78.667,0.46184229]
[1770962184674,4.70565251,78.69,78.667,0.46184229]
[1770962184876,0.44039501,78.689,78.667,0.46184229]
[1770962185788,0.44039501,78.689,78.66,4.2652575]
[1770962185789,0.44018949,78.716,78.681,0.46184229]
[1770962185996,12.99682553,78.74,78.681,0.46184229]
[1770962185997,4.2652575,78.71,78.681,0.46184229]
[1770962186194,4.70544699,78.71,78.681,0.46184229]
[1770962186486,4.2652575,78.71,78.681,0.46184229]
[1770962186971,0.43998632,78.709,78.681,0.46184229]
[1770962187172,0.43998632,78.714,78.683,0.46184229]
[1770962188298,4.61729252,78.734,78.682,12.70938715]
[1770962188299,0.4397855,78.724,78.691,0.46184229]
[1770962188598,0.4397855,78.719,78.691,0.46184229]
[1770962189288,0.4397855,78.719,78.693,0.46184229]
[1770962193300,0.53862805,78.73,78.701,0.46699397]
[1770962193496,4.2652575,78.72,78.701,0.46699397]
[1770962193694,0.43844282,78.709,78.694,12.7074491]
[1770962194703,4.2652575,78.7,78.69,50.73271381]
[1770962194896,4.70333622,78.7,78.69,50.73271381]
[1770962195204,4.70333622,78.7,78.685,0.47436726]
[1770962195586,4.2652575,78.7,78.685,0.47436726]
[1770962195905,0.4378998,78.699,78.677,0.47436726]
[1770962200709,0.4378998,78.699,78.664,31.7804211]
[1770962200710,0.43703557,78.689,78.647,0.47436726]
[1770962200907,0.43703557,78.679,78.651,0.47436726]
[1770962202405,0.43703557,78.679,78.653,0.47436726]
[1770962203413,0.43703557,78.679,78.654,12.71391156]
[1770962203607,0.43703557,78.679,78.655,0.47436726]
[1770962204911,4.2652575,78.67,78.636,0.506939]
[1770962205112,4.2652575,78.65,78.636,0.506939]
[1770962207397,4.2652575,78.65,78.632,0.506939]
[1770962208614,12.71471983,78.649,78.632,0.506939]
[1770962209001,4.2652575,78.64,78.627,0.506939]
[1770962210924,4.2652575,78.65,78.627,0.506939]
[1770962212121,4.2652575,78.64,78.615,0.506939]
[1770962213625,16.98143778,78.64,78.615,0.506939]
[1770962214913,4.2652575,78.63,78.615,0.506939]
[1770962218911,4.26982962,78.63,78.615,0.506939]
[1770962219430,12.71536652,78.645,78.611,0.506939]
[1770962219431,4.26982962,78.62,78.611,0.506939]
[1770962221827,12.7195716,78.619,78.6,0.2]
[1770962222028,4.26982962,78.6,78.585,0.506939]
[1770962223926,4.26982962,78.59,78.561,0.506939]
[1770962224133,4.26982962,78.6,78.561,0.506939]
[1770962224134,4.26982962,78.58,78.561,0.506939]
[1770962226430,12.72604639,78.579,78.561,0.506939]
[1770962226637,4.26982962,78.57,78.56,0.2]
[1770962226830,12.72604639,78.579,78.561,0.506939]
[1770962228038,31.80900447,78.595,78.561,0.506939]
[1770962228039,4.26982962,78.57,78.561,0.506939]
[1770962230245,4.26982962,78.58,78.561,0.506939]
[1770962231523,4.26982962,78.57,78.561,0.506939]
[1770962232521,12.72596495,78.58,78.561,0.506939]
[1770962232522,4.26982962,78.58,78.561,0.506939]
[1770962234240,4.26982962,78.57,78.561,0.506939]
[1770962234622,4.26982962,78.57,78.56,0.2]
[1770962235937,4.26982962,78.57,78.56,0.706939]
[1770962236128,4.26982962,78.57,78.561,0.506939]
[1770962237044,4.26982962,78.58,78.561,0.506939]
[1770962237247,4.26982962,78.57,78.561,0.506939]
[1770962238046,4.26982962,78.58,78.561,0.506939]
[1770962238629,4.26982962,78.57,78.561,0.506939]
[1770962238829,4.26982962,78.58,78.561,0.506939]
[1770962239449,4.26982962,78.57,78.561,0.506939]
[1770962240445,12.72766612,78.569,78.56,0.2]
[1770962240644,4.26982962,78.57,78.556,0.506939]
[1770962240847,12.72766612,78.569,78.556,0.506939]
[1770962243040,31.81259913,78.586,78.556,0.506939]
[1770962243232,4.26982962,78.57,78.556,0.506939]
[1770962248660,4.26982962,78.57,78.55,0.2]
[1770962248661,44.54683143,78.569,78.55,0.2]
[1770962248838,4.26982962,78.56,78.55,0.2]
[1770962249254,4.26982962,78.56,78.55,0.706939]
[1770962249755,4.26982962,78.56,78.551,0.506939]
[1770962251456,4.26982962,78.56,78.55,0.2]
[1770962251638,12.72928626,78.559,78.531,0.506939]
[1770962251960,4.26982962,78.55,78.531,0.506939]
[1770962252459,4.26982962,78.55,78.53,0.2]
[1770962252460,4.26982962,78.54,78.53,0.2]
[1770962252634,12.73252778,78.539,78.52,0.706939]
[1770962253131,4.26982962,78.53,78.514,0.506939]
[1770962253350,4.26982962,78.52,78.51,0.706939]
[1770962253835,4.26982962,78.53,78.511,0.506939]
[1770962255966,4.26982962,78.52,78.505,0.506939]
[1770962256275,0.45635292,78.532,78.501,0.49225728]
[1770962256440,4.26982962,78.52,78.501,0.49225728]
[1770962257375,4.26982962,78.53,78.504,0.49225728]
[1770962258844,4.26982962,78.53,78.49,0.2]
[1770962258845,0.45635292,78.509,78.49,0.2]
[1770962259152,0.45635292,78.501,78.48,0.2]
[1770962259469,4.26982962,78.52,78.481,12.74193753]
[1770962259641,4.26982962,78.53,78.5,4.26982962]
[1770962259841,4.26982962,78.53,78.482,53.86]
[1770962259842,0.45635292,78.529,78.49,4.26982962]
[1770962260944,4.26982962,78.53,78.493,0.49225728]
[1770962260945,0.45635292,78.528,78.493,0.49225728]
[1770962261270,4.26982962,78.53,78.501,0.49225728]
[1770962261445,4.72618254,78.53,78.501,0.49225728]
[1770962262254,12.73414916,78.529,78.501,0.49225728]
[1770962263755,0.45635292,78.528,78.501,0.49225728]
[1770962264653,12.73414916,78.529,78.501,0.49225728]
[1770962265661,0.45635292,78.538,78.503,0.49225728]
[1770962265961,0.45635292,78.538,78.511,0.49225728]
[1770962267164,0.45635292,78.544,78.513,0.49225728]
[1770962267545,0.45635292,78.535,78.513,0.49225728]
[1770962268675,4.72618254,78.54,78.513,0.49225728]
[1770962268846,0.45635292,78.539,78.513,0.49225728]
[1770962269247,0.45635292,78.537,78.513,0.49225728]
[1770962269460,0.45635292,78.529,78.505,0.49225728]
[1770962272271,0.45635292,78.527,78.505,0.49225728]
[1770962272844,4.26982962,78.53,78.505,0.49225728]
[1770962273365,12.73414916,78.529,78.505,0.49225728]
[1770962273751,13.19050208,78.529,78.505,0.49225728]
[1770962273965,0.45635292,78.528,78.505,0.49225728]
[1770962274361,0.45635292,78.526,78.505,0.49225728]
[1770962277673,12.73447349,78.527,78.505,0.49225728]
[1770962278068,13.19082641,78.527,78.505,0.49225728]
[1770962280777,31.83204581,78.616,78.484,31.85335525]
[1770962280778,0.46888253,78.565,78.521,0.48374263]
[1770962280989,0.46888253,78.559,78.521,0.48374263]
[1770962281679,4.74681947,78.55,78.521,0.48374263]
[1770962281985,0.46888253,78.549,78.521,0.48374263]
[1770962282153,0.46888253,78.56,78.521,0.48374263]
[1770962282471,0.46888253,78.568,78.531,0.48374263]
[1770962282679,0.46888253,78.566,78.533,0.48374263]
[1770962282970,4.27793694,78.56,78.533,0.48374263]
[1770962283160,4.74681947,78.56,78.533,0.48374263]
[1770962283348,0.46888253,78.559,78.533,0.48374263]
[1770962284968,0.46888253,78.564,78.533,0.48374263]
[1770962285167,4.74681947,78.56,78.533,0.48374263]
[1770962285675,4.27793694,78.56,78.533,0.48374263]
[1770962285981,0.46888253,78.559,78.533,0.48374263]
[1770962286982,0.46888253,78.549,78.522,0.48374263]
[1770962290476,0.46888253,78.549,78.524,0.48374263]
[1770962292261,17.00883892,78.55,78.524,0.48374263]
[1770962292262,0.46888253,78.547,78.524,0.48374263]
[1770962292482,0.46888253,78.59,78.531,0.48374263]
[1770962292665,4.27793694,78.56,78.531,0.48374263]
[1770962292865,0.46888253,78.549,78.524,0.48374263]
[1770962293069,0.46888253,78.549,78.521,0.48374263]
[1770962293583,0.46888253,78.539,78.521,0.48374263]
[1770962293882,4.27793694,78.57,78.513,0.48374263]
[1770962293883,4.74681947,78.53,78.513,0.48374263]
[1770962294580,0.46888253,78.529,78.501,0.48374263]
[1770962294783,0.46888253,78.529,78.497,53.7]
[1770962294784,0.46888253,78.528,78.503,0.48374263]
[1770962296566,4.27793694,78.52,78.503,0.48374263]
[1770962296789,0.46888253,78.529,78.505,0.48374263]